[Event "VI Sunway Sitges Open 2019"]
[Site "Sitges"]
[Date "2019.12.19"]
[Round "7.32"]
[White "Dhulipalla Bala Chandra Prasad"]
[Black "Bjerre, Jonas Buhl"]
[Result "0-1"]
[ECO "A62"]
[WhiteElo "2414"]
[BlackElo "2526"]
[Annotator "ChessBase"]
[PlyCount "70"]
[EventDate "2019.12.13"]
[EventType "swiss"]
[EventCountry "ESP"]
[SourceTitle "playchess.com"]
[Source "ChessBase"]
[SourceQuality "1"]
[TimeControl "40/5400+30:1800+30"]

1. d4 {[%emt 0:00:00]} Nf6 {[%emt 0:00:04]} 2. c4 {[%emt 0:00:00]} e6 {[%emt 0:00:38]} 3. g3 {[%emt 0:00:26]} c5 {[%emt 0:01:09]} 4. d5 {[%emt 0:00:42]} exd5 {[%emt 0:00:20]} 5. cxd5 {[%emt 0:00:06]} d6 {[%emt 0:00:21]} 6. Bg2 {[%emt 0:00:05]} g6 {[%emt 0:00:10]} 7. Nc3 {[%emt 0:00:07]} Bg7 {[%emt 0:00:19]} 8. Nf3 {[%emt 0:00:06]} O-O {[%emt 0:00:35]} 9. O-O {[%emt 0:00:05]} Re8 {[%emt 0:01:07]} 10. Bf4 {[%emt 0:00:07]} Bf5 {[%emt 0:00:42]} 11. Nh4 {[%emt 0:00:39]} Bc8 {[%emt 0:00:36]} 12. Nf3 {[%emt 0:00:26]} Bf5 {[%emt 0:00:56]} 13. Nh4 {[%emt 0:00:36]} Bc8 {[%emt 0:01:08]} 14. Qd2 {[%emt 0:15:11]} a6 {[%emt 0:00:49]} 15. a4 {[%emt 0:02:32]} Qe7 {[%emt 0:00:41]} 16. Nf3 {[%emt 0:08:15]} Nbd7 {[%emt 0:03:12]} 17. Rab1 {[%emt 0:02:46]} Rb8 {[%emt 0:09:41]} 18. Rfe1 {[%emt 0:05:41]} Qf8 {[%emt 0:04:57]} 19. h3 {[%emt 0:07:22]} Nh5 {[%emt 0:02:31]} 20. Be3 {[%emt 0:04:37]} Nb6 {[%emt 0:03:57]} 21. Qc1 {[%emt 0:13:58]} Bd7 {[%emt 0:12:23]} 22. g4 {[%emt 0:16:32]} Nf6 {[%emt 0:04:40]} 23. Qd1 {[%emt 0:02:52]} h5 {[%emt 0:04:33]} 24. g5 {[%emt 0:04:57]} Ne4 {[%emt 0:02:11]} 25. Nxe4 {[%emt 0:00:35]} Rxe4 {[%emt 0:00:14]} 26. Nd2 {[%emt 0:00:48]} Rh4 {[%emt 0:08:34]} 27. a5 {[%emt 0:03:01]} Na4 {[%emt 0:19:17]} 28. f4 {[%emt 0:05:17]} Qe8 {[%emt 0:03:05]} 29. Qb3 {[%emt 0:00:46]} Nc3 {[%emt 0:01:45]} 30. Kf2 {[%emt 0:01:50]} Nxb1 {[%emt 0:03:00]} 31. Rxb1 {[%emt 0:00:23]} Bd4 {[%emt 0:00:59]} 32. Bxd4 {[%emt 0:02:26]} Rxf4+ {[%emt 0:00:37]} 33. Nf3 {[%emt 0:00:23]} cxd4 {[%emt 0:00:28]} 34. Rc1 {[%emt 0:00:40]} Bb5 {[%emt 0:00:57]} 35. Bf1 {[%emt 0:00:33]} Qe4 {[%emt 0:02:22]} 0-1

[Event "VI Sunway Sitges Open 2019"]
[Site "Sitges"]
[Date "2019.12.19"]
[Round "7.33"]
[White "Aroshidze, Levan"]
[Black "Trent, Lawrence"]
[Result "1-0"]
[ECO "B45"]
[WhiteElo "2514"]
[BlackElo "2396"]
[Annotator "ChessBase"]
[PlyCount "75"]
[EventDate "2019.12.13"]
[EventType "swiss"]
[EventCountry "ESP"]
[SourceTitle "playchess.com"]
[Source "ChessBase"]
[SourceQuality "1"]
[TimeControl "40/5400+30:1800+30"]

1. e4 {[%emt 0:00:00]} c5 {[%emt 0:00:00]} 2. Nf3 {[%emt 0:00:00]} Nc6 {[%emt 0:00:00]} 3. d4 {[%emt 0:00:30]} cxd4 {[%emt 0:00:02]} 4. Nxd4 {[%emt 0:00:05]} Nf6 {[%emt 0:00:05]} 5. Nc3 {[%emt 0:00:06]} e6 {[%emt 0:01:20]} 6. Ndb5 {[%emt 0:02:14]} Bc5 {[%emt 0:00:07]} 7. Bf4 {[%emt 0:05:23]} O-O {[%emt 0:00:44]} 8. Bc7 {[%emt 0:00:50]} Qe7 {[%emt 0:00:04]} 9. Bd6 {[%emt 0:00:06]} Bxd6 {[%emt 0:00:04]} 10. Qxd6 {[%emt 0:00:05]} Qd8 {[%emt 0:00:02]} 11. O-O-O {[%emt 0:06:07]} a6 {[%emt 0:22:40]} 12. Nd4 {[%emt 0:03:27]} Qb6 {[%emt 0:15:13]} 13. Nxc6 {[%emt 0:21:23]} Qxc6 {[%emt 0:12:04]} 14. Be2 {[%emt 0:12:18]} Ne8 {[%emt 0:09:13]} 15. Qxc6 {[%emt 0:06:49]} bxc6 {[%emt 0:02:59]} 16. Na4 {[%emt 0:05:24]} Rb8 {[%emt 0:05:39]} 17. e5 {[%emt 0:01:10]} f6 {[%emt 0:01:15]} 18. Nc5 {[%emt 0:00:35]} fxe5 {[%emt 0:02:30]} 19. Nxd7 {[%emt 0:00:25]} Bxd7 {[%emt 0:00:06]} 20. Rxd7 {[%emt 0:00:05]} Rxf2 {[%emt 0:00:34]} 21. Bxa6 {[%emt 0:04:19]} Nf6 {[%emt 0:02:16]} 22. Rd6 {[%emt 0:01:20]} Nd5 {[%emt 0:00:54]} 23. Bc4 {[%emt 0:01:44]} Kf7 {[%emt 0:00:31]} 24. Rxc6 {[%emt 0:05:10]} Rxg2 {[%emt 0:01:23]} 25. Bb3 {[%emt 0:07:10]} Nf4 {[%emt 0:00:48]} 26. Kb1 {[%emt 0:01:58]} g5 {[%emt 0:02:27]} 27. a4 {[%emt 0:00:38]} Ra8 {[%emt 0:00:21]} 28. Rf1 {[%emt 0:00:36]} Ke7 {[%emt 0:02:25]} 29. Rc7+ {[%emt 0:01:02]} Kf6 {[%emt 0:00:05]} 30. Rxh7 {[%emt 0:06:19]} e4 {[%emt 0:00:05]} 31. h4 {[%emt 0:01:05]} e3 {[%emt 0:01:03]} 32. hxg5+ {[%emt 0:00:39]} Ke5 33. Re1 {[%emt 0:03:21]} Ke4 {[%emt 0:01:28]} 34. Rh6 {[%emt 0:03:26]} e5 {[%emt 0:06:07]} 35. Bc4 {[%emt 0:00:16]} Rxa4 {[%emt 0:01:08]} 36. Bb5 {[%emt 0:00:09]} Rd4 {[%emt 0:01:52]} 37. Bc6+ {[%emt 0:00:05]} Nd5 {[%emt 0:00:01]} 38. Rh4+ {[%emt 0:00:56]} 1-0

[Event "VI Sunway Sitges Open 2019"]
[Site "Sitges"]
[Date "2019.12.19"]
[Round "7.34"]
[White "Sadhwani, Raunak"]
[Black "Lopez Mulet, Inigo"]
[Result "1-0"]
[ECO "A21"]
[WhiteElo "2507"]
[BlackElo "2382"]
[Annotator "ChessBase"]
[PlyCount "51"]
[EventDate "2019.12.13"]
[EventType "swiss"]
[EventCountry "ESP"]
[SourceTitle "playchess.com"]
[Source "ChessBase"]
[SourceQuality "1"]
[TimeControl "40/5400+30:1800+30"]

1. c4 {[%emt 0:00:00]} e5 {[%emt 0:00:01]} 2. Nc3 {[%emt 0:00:00]} Bb4 {[%emt 0:00:29]} 3. Nd5 {[%emt 0:00:00]} Bc5 {[%emt 0:00:05]} 4. e3 {[%emt 0:00:00]} c6 {[%emt 0:00:53]} 5. d4 {[%emt 0:00:00]} Bd6 {[%emt 0:16:58]} 6. dxe5 {[%emt 0:24:27]} Bxe5 {[%emt 0:00:22]} 7. Nf3 {[%emt 0:00:10]} d6 {[%emt 0:01:27]} 8. Nc3 {[%emt 0:03:08]} Bxc3+ {[%emt 0:02:07]} 9. bxc3 {[%emt 0:00:02]} Nf6 {[%emt 0:00:27]} 10. Be2 {[%emt 0:02:20]} O-O {[%emt 0:02:47]} 11. O-O {[%emt 0:00:13]} c5 {[%emt 0:06:41]} 12. Qd3 {[%emt 0:02:34]} Nc6 {[%emt 0:06:23]} 13. e4 {[%emt 0:00:16]} Re8 {[%emt 0:04:04]} 14. Bg5 {[%emt 0:00:57]} h6 {[%emt 0:02:47]} 15. Bxf6 {[%emt 0:02:31]} Qxf6 {[%emt 0:00:06]} 16. Nd2 {[%emt 0:00:04]} b6 {[%emt 0:03:47]} 17. f4 {[%emt 0:01:20]} Ba6 {[%emt 0:01:12]} 18. Rf2 {[%emt 0:01:00]} Re7 {[%emt 0:08:28]} 19. Raf1 {[%emt 0:02:59]} Na5 {[%emt 0:03:07]} 20. g4 {[%emt 0:04:22]} Rae8 {[%emt 0:12:20]} 21. Qg3 {[%emt 0:09:37]} Qe6 {[%emt 0:07:47]} 22. h4 {[%emt 0:03:27]} f6 {[%emt 0:05:42]} 23. g5 {[%emt 0:00:48]} f5 {[%emt 0:02:00]} 24. exf5 {[%emt 0:04:16]} Qe3 {[%emt 0:02:49]} 25. Qxe3 {[%emt 0:07:38]} Rxe3 {[%emt 0:00:07]} 26. Bf3 {[%emt 0:00:02]} 1-0

[Event "VI Sunway Sitges Open 2019"]
[Site "Sitges"]
[Date "2019.12.19"]
[Round "7.39"]
[White "Krastev, Alexander"]
[Black "Gines Esteo, Pedro Antonio"]
[Result "0-1"]
[ECO "B19"]
[WhiteElo "2323"]
[BlackElo "2483"]
[Annotator "ChessBase"]
[PlyCount "74"]
[EventDate "2019.12.13"]
[EventType "swiss"]
[EventCountry "ESP"]
[SourceTitle "playchess.com"]
[Source "ChessBase"]
[SourceQuality "1"]
[TimeControl "40/5400+30:1800+30"]

1. e4 {[%emt 0:00:00]} c6 {[%emt 0:14:21]} 2. d4 {[%emt 0:00:00]} d5 {[%emt 0:00:12]} 3. Nc3 {[%emt 0:00:00]} dxe4 {[%emt 0:00:09]} 4. Nxe4 {[%emt 0:00:00]} Bf5 {[%emt 0:00:04]} 5. Ng3 {[%emt 0:00:04]} Bg6 {[%emt 0:00:06]} 6. h4 {[%emt 0:00:04]} h6 {[%emt 0:00:05]} 7. Nf3 {[%emt 0:00:04]} e6 {[%emt 0:00:10]} 8. Ne5 {[%emt 0:01:31]} Bh7 {[%emt 0:00:05]} 9. Bd3 {[%emt 0:00:04]} Bxd3 {[%emt 0:00:06]} 10. Qxd3 {[%emt 0:00:04]} Nd7 {[%emt 0:01:59]} 11. f4 {[%emt 0:04:20]} Bb4+ {[%emt 0:00:30]} 12. Bd2 {[%emt 0:06:55]} Bxd2+ {[%emt 0:00:06]} 13. Qxd2 {[%emt 0:00:03]} Ngf6 {[%emt 0:00:07]} 14. O-O-O {[%emt 0:01:46]} O-O {[%emt 0:00:07]} 15. Ne2 {[%emt 0:06:58]} Ne4 {[%emt 0:30:21]} 16. Qe3 {[%emt 0:01:20]} f5 {[%emt 0:00:05]} 17. g4 {[%emt 0:22:28]} Nxe5 {[%emt 0:00:17]} 18. fxe5 {[%emt 0:11:18]} Qd5 {[%emt 0:00:35]} 19. Kb1 {[%emt 0:00:50]} fxg4 {[%emt 0:06:02]} 20. Nf4 {[%emt 0:15:38]} Rxf4 {[%emt 0:00:16]} 21. Qxf4 {[%emt 0:00:02]} Rf8 {[%emt 0:00:15]} 22. Qxg4 {[%emt 0:05:04]} Nf2 {[%emt 0:04:14]} 23. Qg1 {[%emt 0:03:44]} Nxd1 24. Qxd1 {[%emt 0:01:13]} Rf4 {[%emt 0:06:22]} 25. c3 {[%emt 0:02:10]} Qe4+ {[%emt 0:00:00]} 26. Kc1 {[%emt 0:03:23]} Rf2 {[%emt 0:00:42]} 27. Re1 {[%emt 0:11:14]} Rc2+ {[%emt 0:07:34]} 28. Qxc2 {[%emt 0:00:00]} Qxe1+ {[%emt 0:00:05]} 29. Qd1 {[%emt 0:00:00]} Qxd1+ {[%emt 0:00:11]} 30. Kxd1 {[%emt 0:00:00]} Kf7 {[%emt 0:01:30]} 31. Ke2 {[%emt 0:00:28]} Kg6 {[%emt 0:00:00]} 32. Kf3 {[%emt 0:00:05]} Kf5 {[%emt 0:00:00]} 33. a4 {[%emt 0:02:55]} a5 {[%emt 0:02:33]} 34. Ke3 {[%emt 0:02:12]} g5 {[%emt 0:00:10]} 35. hxg5 {[%emt 0:00:00]} Kxg5 {[%emt 0:05:19]} 36. Kf3 {[%emt 0:00:00]} Kf5 {[%emt 0:05:46]} 37. Kg3 {[%emt 0:00:00]} b6 {[%emt 0:07:40]} 0-1

[Event "VI Sunway Sitges Open 2019"]
[Site "Sitges"]
[Date "2019.12.19"]
[Round "7.41"]
[White "Ajay Karthikeyan"]
[Black "Yankelevich, Lev"]
[Result "0-1"]
[ECO "C96"]
[WhiteElo "2203"]
[BlackElo "2472"]
[Annotator "ChessBase"]
[PlyCount "102"]
[EventDate "2019.12.13"]
[EventType "swiss"]
[EventCountry "ESP"]
[SourceTitle "playchess.com"]
[Source "ChessBase"]
[SourceQuality "1"]
[TimeControl "40/5400+30:1800+30"]

1. e4 {[%emt 0:01:25]} e5 {[%emt 0:00:48]} 2. Nf3 {[%emt 0:00:21]} Nc6 {[%emt 0:00:04]} 3. Bb5 {[%emt 0:00:06]} a6 {[%emt 0:00:24]} 4. Ba4 {[%emt 0:00:02]} Nf6 {[%emt 0:00:07]} 5. O-O {[%emt 0:00:03]} Be7 {[%emt 0:00:04]} 6. Re1 {[%emt 0:00:04]} b5 {[%emt 0:00:03]} 7. Bb3 {[%emt 0:00:04]} O-O {[%emt 0:00:04]} 8. h3 {[%emt 0:00:02]} d6 {[%emt 0:00:36]} 9. c3 {[%emt 0:00:04]} Na5 {[%emt 0:00:15]} 10. Bc2 {[%emt 0:00:11]} c5 {[%emt 0:00:02]} 11. d4 {[%emt 0:00:06]} Nd7 {[%emt 0:00:02]} 12. Nbd2 {[%emt 0:08:47]} exd4 {[%emt 0:00:16]} 13. cxd4 {[%emt 0:00:05]} Nc6 {[%emt 0:00:05]} 14. Nf1 {[%emt 0:04:29]} cxd4 {[%emt 0:05:29]} 15. Nxd4 {[%emt 0:01:48]} Nxd4 {[%emt 0:04:48]} 16. Qxd4 {[%emt 0:00:06]} Ne5 {[%emt 0:01:05]} 17. Qd1 {[%emt 0:06:32]} Nc4 {[%emt 0:09:10]} 18. b3 {[%emt 0:04:31]} Nb6 {[%emt 0:01:22]} 19. Bb2 {[%emt 0:05:41]} Bf6 {[%emt 0:00:54]} 20. Bd4 {[%emt 0:00:06]} Be5 {[%emt 0:02:35]} 21. Nh2 {[%emt 0:06:16]} Be6 {[%emt 0:01:19]} 22. Nf3 {[%emt 0:01:46]} Nd7 {[%emt 0:00:18]} 23. Qd2 {[%emt 0:06:20]} Qf6 {[%emt 0:10:25]} 24. Nxe5 {[%emt 0:04:38]} dxe5 {[%emt 0:00:12]} 25. Be3 {[%emt 0:00:04]} Nb8 {[%emt 0:03:02]} 26. a4 {[%emt 0:11:50]} Nc6 {[%emt 0:02:50]} 27. axb5 {[%emt 0:00:02]} axb5 {[%emt 0:00:05]} 28. Rxa8 {[%emt 0:00:15]} Rxa8 {[%emt 0:00:04]} 29. Qd6 {[%emt 0:06:02]} Rc8 {[%emt 0:13:18]} 30. Bd3 {[%emt 0:04:55]} Bxb3 {[%emt 0:01:44]} 31. Qxf6 {[%emt 0:00:11]} gxf6 {[%emt 0:01:28]} 32. Bxb5 {[%emt 0:01:31]} Nd4 {[%emt 0:00:03]} 33. Bf1 {[%emt 0:01:33]} Kg7 {[%emt 0:00:06]} 34. Rc1 {[%emt 0:00:41]} Ra8 {[%emt 0:02:01]} 35. Kh2 {[%emt 0:01:40]} Ra2 {[%emt 0:00:35]} 36. Kg3 {[%emt 0:06:19]} Bc2 {[%emt 0:01:13]} 37. Bc4 {[%emt 0:02:42]} Ra3 {[%emt 0:00:09]} 38. Kh2 {[%emt 0:04:03]} Bxe4 {[%emt 0:00:21]} 39. Bxd4 {[%emt 0:00:07]} exd4 {[%emt 0:00:11]} 40. Rd1 {[%emt 0:00:00]} Ra4 {[%emt 0:00:00]} 41. Bf1 {[%emt 0:14:55]} Kf8 {[%emt 0:10:36]} 42. Kg3 {[%emt 0:00:50]} Bg6 {[%emt 0:00:29]} 43. Kf4 {[%emt 0:05:36]} Ke7 {[%emt 0:00:19]} 44. g4 {[%emt 0:00:54]} Kd6 {[%emt 0:01:14]} 45. f3 {[%emt 0:03:07]} Kd5 {[%emt 0:02:11]} 46. Rc1 {[%emt 0:00:39]} Bc2 {[%emt 0:02:32]} 47. Bb5 {[%emt 0:02:02]} Rb4 {[%emt 0:03:21]} 48. Be8 {[%emt 0:00:41]} d3+ {[%emt 0:00:03]} 49. Ke3 {[%emt 0:00:05]} Kc4 {[%emt 0:00:05]} 50. Kd2 {[%emt 0:00:28]} Rb2 {[%emt 0:00:07]} 51. Ke3 {[%emt 0:01:03]} Kc3 {[%emt 0:00:18] Kd4+} 0-1

[Event "VI Sunway Sitges Open 2019"]
[Site "Sitges"]
[Date "2019.12.19"]
[Round "7.42"]
[White "Mohamed Anees M"]
[Black "Karthik Venkataraman"]
[Result "0-1"]
[ECO "E74"]
[WhiteElo "2056"]
[BlackElo "2470"]
[Annotator "ChessBase"]
[PlyCount "86"]
[EventDate "2019.12.13"]
[EventType "swiss"]
[EventCountry "ESP"]
[SourceTitle "playchess.com"]
[Source "ChessBase"]
[SourceQuality "1"]
[TimeControl "40/5400+30:1800+30"]

1. d4 {[%emt 0:00:00]} e6 {[%emt 0:04:07]} 2. c4 {[%emt 0:00:00]} Nf6 {[%emt 0:00:13]} 3. Nf3 {[%emt 0:00:00]} c5 {[%emt 0:00:55]} 4. d5 {[%emt 0:00:32]} g6 {[%emt 0:00:23]} 5. Nc3 {[%emt 0:00:35]} Bg7 {[%emt 0:00:12]} 6. e4 {[%emt 0:01:59]} O-O {[%emt 0:00:16]} 7. Be2 {[%emt 0:09:53]} exd5 {[%emt 0:02:24]} 8. exd5 {[%emt 0:01:08]} d6 {[%emt 0:00:35]} 9. h3 {[%emt 0:00:47]} Na6 {[%emt 0:02:18]} 10. O-O {[%emt 0:01:38]} Nc7 {[%emt 0:00:07]} 11. Bf4 {[%emt 0:03:57]} Nh5 {[%emt 0:00:31]} 12. Bh2 {[%emt 0:04:59]} f5 {[%emt 0:00:11]} 13. Ne1 {[%emt 0:01:58]} Nf6 {[%emt 0:00:30]} 14. Qd2 {[%emt 0:07:25]} h6 {[%emt 0:03:21]} 15. Bd3 {[%emt 0:12:00]} g5 {[%emt 0:04:47]} 16. Nf3 {[%emt 0:01:59]} Nh5 {[%emt 0:03:09]} 17. Ne2 {[%emt 0:11:21]} Rb8 {[%emt 0:04:19]} 18. a4 {[%emt 0:02:06]} Na6 {[%emt 0:00:50]} 19. Ra3 {[%emt 0:01:43]} Nb4 {[%emt 0:00:29]} 20. Bb1 {[%emt 0:01:20]} Qf6 {[%emt 0:00:46]} 21. Nfd4 {[%emt 0:04:46]} f4 {[%emt 0:05:00]} 22. Be4 {[%emt 0:06:19]} a5 {[%emt 0:07:09]} 23. Nb5 {[%emt 0:08:22]} Qxb2 {[%emt 0:00:54]} 24. Qd1 {[%emt 0:00:08]} Bf5 {[%emt 0:28:03]} 25. Rb3 {[%emt 0:03:47]} Qe5 {[%emt 0:03:11]} 26. Bxf5 {[%emt 0:02:25]} Qxf5 {[%emt 0:00:17]} 27. Nxd6 {[%emt 0:00:31]} Qd7 {[%emt 0:01:19]} 28. Ne4 {[%emt 0:01:09]} b6 {[%emt 0:00:05]} 29. Nd4 {[%emt 0:03:21]} cxd4 {[%emt 0:00:35]} 30. Qxh5 {[%emt 0:00:03]} Qxa4 {[%emt 0:00:05]} 31. Rbb1 {[%emt 0:00:30]} Qe8 {[%emt 0:01:24]} 32. Qf3 {[%emt 0:00:17]} Qg6 {[%emt 0:01:08]} 33. Rfe1 {[%emt 0:01:57]} Rfe8 {[%emt 0:00:26]} 34. g3 {[%emt 0:02:02]} Nc2 {[%emt 0:05:04]} 35. Re2 {[%emt 0:01:19]} Ne3 {[%emt 0:00:37]} 36. Nd2 {[%emt 0:01:41]} d3 {[%emt 0:01:58]} 37. Ree1 {[%emt 0:00:06]} Bc3 {[%emt 0:00:53]} 38. fxe3 {[%emt 0:01:15]} fxe3 {[%emt 0:01:41]} 39. Rxe3 {[%emt 0:01:03]} Bd4 {[%emt 0:00:43]} 40. Rbe1 {[%emt 0:00:00]} Rxe3 {[%emt 0:00:00]} 41. Rxe3 {[%emt 0:01:42]} Re8 {[%emt 0:01:03]} 42. Nf1 {[%emt 0:00:32]} d2 {[%emt 0:00:11]} 43. Kf2 {[%emt 0:05:16]} Rf8 {[%emt 0:00:46]} 0-1

[Event "VI Sunway Sitges Open 2019"]
[Site "Sitges"]
[Date "2019.12.19"]
[Round "7.44"]
[White "Kulaots, Kaido"]
[Black "Raja Rithvik R"]
[Result "1/2-1/2"]
[ECO "B51"]
[WhiteElo "2538"]
[BlackElo "2381"]
[Annotator "ChessBase"]
[PlyCount "75"]
[EventDate "2019.12.13"]
[EventType "swiss"]
[EventCountry "ESP"]
[SourceTitle "playchess.com"]
[Source "ChessBase"]
[SourceQuality "1"]
[TimeControl "40/5400+30:1800+30"]

1. e4 {[%emt 0:00:00]} c5 {[%emt 0:03:46]} 2. Nf3 {[%emt 0:00:17]} d6 {[%emt 0:00:09]} 3. Bb5+ {[%emt 0:03:01]} Nd7 {[%emt 0:00:08]} 4. O-O {[%emt 0:00:14]} a6 {[%emt 0:00:18]} 5. Bd3 {[%emt 0:00:07]} Ngf6 {[%emt 0:00:09]} 6. a4 {[%emt 0:00:55]} b6 {[%emt 0:01:05]} 7. Re1 {[%emt 0:00:52]} Bb7 {[%emt 0:00:15]} 8. c3 {[%emt 0:00:29]} g6 {[%emt 0:00:38]} 9. Na3 {[%emt 0:05:39]} Bg7 {[%emt 0:00:22]} 10. Bc2 {[%emt 0:00:15]} O-O {[%emt 0:00:25]} 11. d4 {[%emt 0:01:23]} Qc7 {[%emt 0:02:51]} 12. h3 {[%emt 0:11:40]} e5 {[%emt 0:07:33]} 13. d5 {[%emt 0:08:03]} h6 {[%emt 0:06:39]} 14. Be3 {[%emt 0:02:21]} Kh7 {[%emt 0:01:34]} 15. Nd2 {[%emt 0:02:37]} Ng8 {[%emt 0:11:22]} 16. Ndc4 {[%emt 0:03:22]} Ne7 {[%emt 0:07:21]} 17. f4 {[%emt 0:14:39]} f5 {[%emt 0:10:34]} 18. fxe5 {[%emt 0:05:38]} Nxe5 {[%emt 0:00:51]} 19. Bf4 {[%emt 0:06:47]} Nxc4 {[%emt 0:07:18]} 20. Nxc4 {[%emt 0:00:08]} Rad8 {[%emt 0:00:32]} 21. Qd3 {[%emt 0:20:46]} fxe4 {[%emt 0:09:04]} 22. Rxe4 {[%emt 0:00:29]} Rf6 {[%emt 0:04:58]} 23. Ne3 {[%emt 0:05:33]} Bc8 {[%emt 0:02:41]} 24. Re1 {[%emt 0:00:34]} Nf5 {[%emt 0:02:03]} 25. g4 {[%emt 0:02:46]} Nh4 {[%emt 0:06:24]} 26. Nc4 {[%emt 0:02:19]} Rdf8 {[%emt 0:03:16]} 27. Re7 {[%emt 0:01:08]} Qd8 {[%emt 0:01:46]} 28. Qg3 {[%emt 0:00:38]} Rxf4 {[%emt 0:01:40]} 29. Qxh4 {[%emt 0:00:05]} Rxc4 {[%emt 0:04:06]} 30. Qh5 {[%emt 0:00:31]} Bf5 {[%emt 0:03:25]} 31. gxf5 {[%emt 0:00:44]} gxh5 {[%emt 0:00:06]} 32. f6+ {[%emt 0:00:04]} Kg8 {[%emt 0:00:12]} 33. Rxg7+ {[%emt 0:01:00]} Kh8 {[%emt 0:00:01]} 34. Rh7+ {[%emt 0:00:06]} Kg8 {[%emt 0:00:03]} 35. Rg7+ {[%emt 0:00:05]} Kh8 {[%emt 0:00:02]} 36. Rh7+ {[%emt 0:02:04]} Kg8 {[%emt 0:00:01]} 37. Rg7+ {[%emt 0:00:35]} Kh8 {[%emt 0:00:21]} 38. Rh7+ {[%emt 0:00:25]} 1/2-1/2

[Event "VI Sunway Sitges Open 2019"]
[Site "Sitges"]
[Date "2019.12.19"]
[Round "7.45"]
[White "Mieles Palau, Daniel"]
[Black "Narciso Dublan, Marc"]
[Result "1/2-1/2"]
[ECO "A17"]
[WhiteElo "2382"]
[BlackElo "2516"]
[Annotator "ChessBase"]
[PlyCount "74"]
[EventDate "2019.12.13"]
[EventType "swiss"]
[EventCountry "ESP"]
[SourceTitle "playchess.com"]
[Source "ChessBase"]
[SourceQuality "1"]
[TimeControl "40/5400+30:1800+30"]

1. c4 {[%emt 0:00:00]} e6 {[%emt 0:00:00]} 2. Nf3 {[%emt 0:00:58]} d5 {[%emt 0:00:00]} 3. e3 {[%emt 0:00:09]} Nf6 {[%emt 0:00:25]} 4. Nc3 {[%emt 0:00:33]} b6 {[%emt 0:00:24]} 5. b3 {[%emt 0:03:41]} Bb7 {[%emt 0:00:19]} 6. Bb2 {[%emt 0:00:07]} Nbd7 {[%emt 0:01:00]} 7. cxd5 {[%emt 0:04:58]} exd5 {[%emt 0:00:22]} 8. d4 {[%emt 0:00:04]} Bd6 {[%emt 0:00:30]} 9. g3 {[%emt 0:00:14]} O-O {[%emt 0:00:55]} 10. Bg2 {[%emt 0:00:12]} Ba6 {[%emt 0:02:00]} 11. a3 {[%emt 0:12:37]} Qe7 {[%emt 0:04:49]} 12. Ne2 {[%emt 0:01:44]} Ne4 {[%emt 0:01:51]} 13. O-O {[%emt 0:00:09]} Rae8 {[%emt 0:05:31]} 14. Re1 {[%emt 0:02:34]} Ndf6 {[%emt 0:09:20]} 15. Nc3 {[%emt 0:06:03]} Ng4 {[%emt 0:16:19]} 16. Nxe4 {[%emt 0:07:19]} dxe4 {[%emt 0:00:09]} 17. Nd2 {[%emt 0:05:16]} f5 {[%emt 0:03:01]} 18. Nc4 {[%emt 0:06:05]} Bxc4 {[%emt 0:07:23]} 19. bxc4 {[%emt 0:00:07]} h5 {[%emt 0:00:50]} 20. c5 {[%emt 0:06:24]} bxc5 {[%emt 0:01:48]} 21. dxc5 {[%emt 0:00:05]} Be5 {[%emt 0:00:35]} 22. Bxe5 {[%emt 0:02:02]} Qxe5 {[%emt 0:00:21]} 23. h3 {[%emt 0:15:02]} Nf6 {[%emt 0:00:19]} 24. h4 {[%emt 0:00:02]} Rb8 {[%emt 0:04:47]} 25. Rc1 {[%emt 0:02:27]} Rb2 {[%emt 0:04:48]} 26. Re2 {[%emt 0:01:14]} Rxe2 {[%emt 0:03:15]} 27. Qxe2 {[%emt 0:00:06]} Rb8 {[%emt 0:00:13]} 28. Bh3 {[%emt 0:00:42]} Rb2 {[%emt 0:06:24]} 29. Qc4+ {[%emt 0:04:57]} Nd5 {[%emt 0:11:40]} 30. c6 {[%emt 0:02:43]} Rd2 {[%emt 0:03:00]} 31. Qc5 {[%emt 0:02:17]} a6 {[%emt 0:04:36]} 32. Rb1 {[%emt 0:02:31]} Kh7 {[%emt 0:01:56]} 33. Rb8 {[%emt 0:06:34]} Rd1+ {[%emt 0:07:01]} 34. Kh2 {[%emt 0:00:05]} Rd2 {[%emt 0:00:03]} 35. Kg1 {[%emt 0:00:06]} Rd1+ {[%emt 0:00:10]} 36. Kh2 {[%emt 0:03:27]} Rd2 {[%emt 0:00:05]} 37. Kg1 {[%emt 0:00:04]} Rd1+ {[%emt 0:00:12]} 1/2-1/2

[Event "VI Sunway Sitges Open 2019"]
[Site "Sitges"]
[Date "2019.12.19"]
[Round "7.46"]
[White "Valenzuela Gomez, Fernando"]
[Black "Iniyan, P."]
[Result "1-0"]
[ECO "E21"]
[WhiteElo "2373"]
[BlackElo "2497"]
[Annotator "ChessBase"]
[PlyCount "77"]
[EventDate "2019.12.13"]
[EventType "swiss"]
[EventCountry "ESP"]
[SourceTitle "playchess.com"]
[Source "ChessBase"]
[SourceQuality "1"]
[TimeControl "40/5400+30:1800+30"]

1. d4 {[%emt 0:05:50]} Nf6 {[%emt 0:00:26]} 2. c4 {[%emt 0:00:16]} e6 {[%emt 0:00:17]} 3. Nc3 {[%emt 0:01:45]} Bb4 {[%emt 0:00:09]} 4. e3 {[%emt 0:04:19]} b6 {[%emt 0:00:10]} 5. Bd2 {[%emt 0:03:07]} Bb7 {[%emt 0:00:38]} 6. Nf3 {[%emt 0:00:08]} O-O {[%emt 0:01:54]} 7. Bd3 {[%emt 0:00:48]} Bxc3 {[%emt 0:05:45]} 8. Bxc3 {[%emt 0:00:48]} Ne4 {[%emt 0:00:06]} 9. Bxe4 {[%emt 0:00:03]} Bxe4 {[%emt 0:00:11]} 10. d5 {[%emt 0:00:01]} c5 {[%emt 0:03:14]} 11. Nd2 {[%emt 0:01:19]} Bg6 {[%emt 0:00:07]} 12. h4 {[%emt 0:00:44]} exd5 {[%emt 0:12:49]} 13. cxd5 {[%emt 0:02:12]} Bd3 {[%emt 0:02:55]} 14. Qg4 {[%emt 0:20:16]} f6 {[%emt 0:00:12]} 15. O-O-O {[%emt 0:10:04]} Qe7 {[%emt 0:16:36]} 16. Nb3 {[%emt 0:11:51]} Ba6 {[%emt 0:02:26]} 17. e4 {[%emt 0:03:28]} d6 {[%emt 0:01:23]} 18. f4 {[%emt 0:04:35]} Nd7 {[%emt 0:01:53]} 19. Rhe1 {[%emt 0:02:32]} Rfe8 {[%emt 0:03:32]} 20. Kb1 {[%emt 0:03:30]} b5 {[%emt 0:01:26]} 21. a3 {[%emt 0:05:59]} Qf7 {[%emt 0:08:49]} 22. Qf3 {[%emt 0:02:11]} Bb7 {[%emt 0:05:10]} 23. Na5 {[%emt 0:00:43]} Nb6 {[%emt 0:00:13]} 24. g4 {[%emt 0:01:51]} Rac8 {[%emt 0:04:06]} 25. Nxb7 {[%emt 0:01:10]} Qxb7 {[%emt 0:00:05]} 26. g5 {[%emt 0:00:23]} b4 {[%emt 0:02:56]} 27. axb4 {[%emt 0:00:24]} fxg5 {[%emt 0:07:18]} 28. Rg1 {[%emt 0:05:26]} Na4 {[%emt 0:00:24]} 29. Rxg5 {[%emt 0:00:59]} Nxc3+ {[%emt 0:02:48]} 30. Qxc3 {[%emt 0:00:09]} cxb4 {[%emt 0:00:21]} 31. Qd3 {[%emt 0:01:42]} b3 {[%emt 0:04:03]} 32. Rdg1 {[%emt 0:00:25]} Re7 {[%emt 0:00:45]} 33. e5 {[%emt 0:01:16]} Qb4 {[%emt 0:02:00]} 34. Rh5 {[%emt 0:02:19]} g6 {[%emt 0:00:20]} 35. Rxh7 {[%emt 0:00:38]} Rc1+ {[%emt 0:00:39]} 36. Rxc1 {[%emt 0:00:34]} Kxh7 {[%emt 0:00:05]} 37. h5 {[%emt 0:00:38]} Rg7 {[%emt 0:00:58]} 38. hxg6+ {[%emt 0:00:25]} Rxg6 {[%emt 0:00:14]} 39. Qh3+ {[%emt 0:00:12]} 1-0